[Event "16th Deltalift Open 2019"]
[Site "Halmstad"]
[Date "2019.05.30"]
[Round "3.19"]
[White "Ekenstierna, Adrian"]
[Black "Lindhe, Magnus"]
[Result "0-1"]
[ECO "C03"]
[WhiteElo "1856"]
[BlackElo "2173"]
[Annotator "ChessBase"]
[PlyCount "108"]
[EventDate "2019.05.30"]
[EventType "swiss"]
[EventCountry "SWE"]
[SourceTitle "playchess.com"]
[Source "ChessBase"]
[SourceQuality "1"]
[TimeControl "1800+12"]

1. e4 {[%emt 0:00:08]} e6 {[%emt 0:00:25]} 2. d4 {[%emt 0:00:04]} d5 {[%emt 0:00:09]} 3. Nd2 {[%emt 0:00:58]} dxe4 {[%emt 0:00:12]} 4. Nxe4 {[%emt 0:00:01]} b6 {[%emt 0:00:13]} 5. Nf3 {[%emt 0:00:31]} Bb7 {[%emt 0:00:22]} 6. Bd3 {[%emt 0:00:07]} Nf6 {[%emt 0:00:10]} 7. Bg5 {[%emt 0:00:14]} Be7 {[%emt 0:00:30]} 8. Bxf6 {[%emt 0:00:05]} gxf6 {[%emt 0:00:09]} 9. c3 {[%emt 0:00:15]} Nd7 {[%emt 0:01:50]} 10. Qe2 {[%emt 0:00:08]} c6 {[%emt 0:02:42]} 11. g3 {[%emt 0:01:16]} Qc7 {[%emt 0:00:39]} 12. O-O-O {[%emt 0:00:16]} O-O-O {[%emt 0:04:16]} 13. Rhe1 {[%emt 0:00:47]} Kb8 {[%emt 0:00:31]} 14. Kb1 {[%emt 0:00:05]} h6 {[%emt 0:04:08]} 15. Ng1 {[%emt 0:00:53]} f5 {[%emt 0:01:08]} 16. Nd2 {[%emt 0:00:38]} Bf6 {[%emt 0:00:50]} 17. f4 {[%emt 0:00:34]} h5 {[%emt 0:00:28]} 18. Ngf3 {[%emt 0:00:14]} h4 {[%emt 0:00:14]} 19. Nc4 {[%emt 0:01:02]} Rdg8 {[%emt 0:01:56]} 20. Rg1 {[%emt 0:01:05]} hxg3 {[%emt 0:00:19]} 21. hxg3 {[%emt 0:00:24]} Rg7 {[%emt 0:00:39]} 22. Nfe5 {[%emt 0:01:37]} Rhg8 {[%emt 0:02:32]} 23. Qe3 {[%emt 0:01:28]} Nxe5 {[%emt 0:03:30]} 24. dxe5 {[%emt 0:00:14]} Be7 {[%emt 0:00:06]} 25. Be2 {[%emt 0:00:02]} Bc5 {[%emt 0:00:20]} 26. Rd4 {[%emt 0:00:45]} Ba6 {[%emt 0:00:40]} 27. Nd6 {[%emt 0:00:42]} Bxe2 {[%emt 0:00:08]} 28. Qxe2 {[%emt 0:00:00]} Bxd4 {[%emt 0:02:19]} 29. cxd4 {[%emt 0:00:02]} Rxg3 30. Rxg3 Rxg3 {[%emt 0:00:28]} 31. Qh2 {[%emt 0:00:02]} Rg8 {[%emt 0:00:08]} 32. Qh7 {[%emt 0:00:01]} Rd8 {[%emt 0:00:54]} 33. Qg7 {[%emt 0:01:15]} Rxd6 {[%emt 0:00:25]} 34. exd6 {[%emt 0:00:01]} Qxd6 {[%emt 0:00:12]} 35. Qg8+ {[%emt 0:00:11]} Kb7 {[%emt 0:00:09]} 36. Qxf7+ {[%emt 0:00:08]} Ka6 {[%emt 0:00:05]} 37. a3 {[%emt 0:01:35]} Qxd4 {[%emt 0:00:31]} 38. Qxe6 {[%emt 0:00:01]} Qxf4 {[%emt 0:00:12]} 39. Qxc6 {[%emt 0:00:24]} Qe4+ {[%emt 0:00:14]} 40. Qxe4 {[%emt 0:00:01]} fxe4 {[%emt 0:00:07]} 41. Kc2 {[%emt 0:00:00]} Kb5 {[%emt 0:00:08]} 42. Kc3 {[%emt 0:00:56]} Ka4 {[%emt 0:00:42]} 43. Kd4 {[%emt 0:00:20]} Kb3 {[%emt 0:00:06]} 44. Kxe4 {[%emt 0:00:01]} Kxb2 {[%emt 0:00:08]} 45. a4 {[%emt 0:00:01]} a5 {[%emt 0:00:36]} 46. Kd3 {[%emt 0:00:36]} Kb3 {[%emt 0:00:08]} 47. Kd2 {[%emt 0:00:03]} Kxa4 {[%emt 0:00:04]} 48. Kc2 {[%emt 0:00:01]} Kb4 {[%emt 0:00:06]} 49. Kb2 {[%emt 0:00:00]} b5 {[%emt 0:00:02]} 50. Kb1 {[%emt 0:00:01]} a4 {[%emt 0:00:01]} 51. Ka1 {[%emt 0:00:01]} Kc3 {[%emt 0:00:03]} 52. Kb1 {[%emt 0:00:01]} b4 {[%emt 0:00:01]} 53. Kc1 {[%emt 0:00:01]} b3 {[%emt 0:00:03]} 54. Kb1 {[%emt 0:00:00]} b2 {[%emt 0:00:16]} 0-1

[Event "16th Deltalift Open 2019"]
[Site "Halmstad"]
[Date "2019.05.30"]
[Round "3.20"]
[White "Ask, Josef"]
[Black "Dingertz, Erik"]
[Result "1-0"]
[ECO "C65"]
[WhiteElo "2149"]
[BlackElo "1969"]
[Annotator "ChessBase"]
[PlyCount "33"]
[EventDate "2019.05.30"]
[EventType "swiss"]
[EventCountry "SWE"]
[SourceTitle "playchess.com"]
[Source "ChessBase"]
[SourceQuality "1"]
[TimeControl "1800+12"]

1. e4 {[%emt 0:00:00]} e5 {[%emt 0:00:00]} 2. Nf3 {[%emt 0:00:00]} Nc6 {[%emt 0:00:00]} 3. Bb5 {[%emt 0:00:00]} Nf6 {[%emt 0:00:00]} 4. d3 {[%emt 0:00:00]} Bc5 {[%emt 0:00:00]} 5. Bxc6 {[%emt 0:00:04]} dxc6 {[%emt 0:00:00]} 6. Bg5 {[%emt 0:00:23]} O-O {[%emt 0:00:57]} 7. h3 {[%emt 0:00:18]} Re8 {[%emt 0:00:26]} 8. Nbd2 {[%emt 0:00:15]} Bd6 {[%emt 0:05:38]} 9. Nc4 {[%emt 0:00:22]} Be6 {[%emt 0:01:18]} 10. Nfd2 {[%emt 0:01:00]} Bxc4 {[%emt 0:01:05]} 11. Nxc4 {[%emt 0:00:04]} Qe7 {[%emt 0:04:35]} 12. Ne3 {[%emt 0:00:24]} Rad8 {[%emt 0:00:28]} 13. Qf3 {[%emt 0:01:07]} b5 {[%emt 0:02:40]} 14. Ng4 {[%emt 0:00:32]} Bb4+ {[%emt 0:02:03]} 15. c3 {[%emt 0:00:30]} Ba5 {[%emt 0:00:01]} 16. Nxf6+ {[%emt 0:00:38]} Kh8 {[%emt 0:00:15]} 17. Qf5 {[%emt 0:01:17]} 1-0

[Event "16th Deltalift Open 2019"]
[Site "Halmstad"]
[Date "2019.05.30"]
[Round "3.21"]
[White "Olund, Joar"]
[Black "Narva, David"]
[Result "1-0"]
[ECO "E95"]
[WhiteElo "2328"]
[BlackElo "1956"]
[Annotator "ChessBase"]
[PlyCount "87"]
[EventDate "2019.05.30"]
[EventType "swiss"]
[EventCountry "SWE"]
[SourceTitle "playchess.com"]
[Source "ChessBase"]
[SourceQuality "1"]
[TimeControl "1800+12"]

1. d4 {[%emt 0:15:20]} Nf6 {[%emt 0:00:00]} 2. c4 {[%emt 0:00:01]} g6 {[%emt 0:00:00]} 3. Nc3 {[%emt 0:00:07]} Bg7 {[%emt 0:00:01]} 4. e4 {[%emt 0:00:04]} O-O {[%emt 0:00:04]} 5. Nf3 {[%emt 0:00:12]} d6 {[%emt 0:00:05]} 6. Be2 {[%emt 0:00:00]} Nbd7 {[%emt 0:00:09]} 7. O-O {[%emt 0:00:02]} e5 8. Re1 c6 {[%emt 0:00:05]} 9. Bf1 {[%emt 0:00:02]} Qe7 {[%emt 0:00:01]} 10. Rb1 {[%emt 0:00:03]} Nh5 {[%emt 0:01:53]} 11. g3 {[%emt 0:01:58]} exd4 {[%emt 0:02:18]} 12. Nxd4 {[%emt 0:00:03]} Qf6 {[%emt 0:01:21]} 13. Be3 {[%emt 0:00:30]} Ne5 {[%emt 0:00:11]} 14. Be2 {[%emt 0:00:12]} Be6 {[%emt 0:02:13]} 15. Nxe6 {[%emt 0:02:46]} fxe6 {[%emt 0:02:14]} 16. f4 {[%emt 0:00:24]} Nf7 {[%emt 0:01:15]} 17. Bxh5 {[%emt 0:00:08]} gxh5 {[%emt 0:00:02]} 18. Qxh5 {[%emt 0:00:01]} Rad8 {[%emt 0:03:44]} 19. Rbd1 {[%emt 0:00:10]} b6 {[%emt 0:00:21]} 20. Rd3 {[%emt 0:00:57]} d5 {[%emt 0:00:30]} 21. Bd4 {[%emt 0:01:40]} Qg6 {[%emt 0:00:11]} 22. Qxg6 {[%emt 0:00:04]} hxg6 {[%emt 0:00:02]} 23. Bxg7 {[%emt 0:00:01]} Kxg7 {[%emt 0:00:02]} 24. exd5 {[%emt 0:00:11]} exd5 {[%emt 0:00:22]} 25. cxd5 {[%emt 0:00:02]} Rd7 {[%emt 0:01:10]} 26. b4 {[%emt 0:00:51]} Rfd8 {[%emt 0:00:14]} 27. Red1 {[%emt 0:00:02]} Nh6 {[%emt 0:00:14]} 28. h3 {[%emt 0:04:24]} Ng8 {[%emt 0:00:20]} 29. Kf2 {[%emt 0:00:50]} Ne7 {[%emt 0:00:26]} 30. d6 {[%emt 0:00:13]} Nc8 {[%emt 0:00:51]} 31. Ne4 {[%emt 0:00:13]} Re8 {[%emt 0:00:31]} 32. Ng5 {[%emt 0:00:24]} Kf6 {[%emt 0:00:18]} 33. Nf3 {[%emt 0:00:38]} Red8 {[%emt 0:00:34]} 34. Ne5 {[%emt 0:00:25]} Rxd6 {[%emt 0:00:08]} 35. Rxd6+ {[%emt 0:00:02]} Nxd6 {[%emt 0:00:07]} 36. Kf3 {[%emt 0:00:01]} c5 {[%emt 0:00:37]} 37. bxc5 {[%emt 0:00:01]} bxc5 {[%emt 0:00:02]} 38. Rd5 {[%emt 0:00:31]} c4 {[%emt 0:00:16]} 39. Rc5 {[%emt 0:00:13]} Rb8 {[%emt 0:00:18]} 40. Nxc4 {[%emt 0:00:35]} Nf5 {[%emt 0:00:24]} 41. g4 {[%emt 0:00:22]} Ne7 {[%emt 0:00:12]} 42. Ra5 {[%emt 0:00:27]} Rc8 {[%emt 0:00:16]} 43. Ra6+ {[%emt 0:00:18]} Kg7 {[%emt 0:00:40]} 44. Rxa7 {[%emt 0:00:03]} 1-0

[Event "16th Deltalift Open 2019"]
[Site "Halmstad"]
[Date "2019.05.30"]
[Round "3.22"]
[White "Bensryd, Hampus"]
[Black "Nyander, Joakim"]
[Result "0-1"]
[ECO "A01"]
[WhiteElo "1964"]
[BlackElo "2235"]
[Annotator "ChessBase"]
[PlyCount "124"]
[EventDate "2019.05.30"]
[EventType "swiss"]
[EventCountry "SWE"]
[SourceTitle "playchess.com"]
[Source "ChessBase"]
[SourceQuality "1"]
[TimeControl "1800+12"]

1. b3 {[%emt 0:00:00]} c5 {[%emt 0:00:10]} 2. Bb2 {[%emt 0:00:00]} b6 {[%emt 0:00:08]} 3. e3 {[%emt 0:00:13]} Nf6 {[%emt 0:00:20]} 4. f4 {[%emt 0:00:20]} e6 {[%emt 0:00:17]} 5. Nf3 {[%emt 0:00:04]} Be7 {[%emt 0:00:20]} 6. Be2 {[%emt 0:00:19]} d6 {[%emt 0:00:15]} 7. O-O {[%emt 0:00:20]} Bb7 {[%emt 0:00:22]} 8. Bb5+ {[%emt 0:01:22]} Nbd7 {[%emt 0:00:18]} 9. d3 {[%emt 0:00:12]} O-O {[%emt 0:02:03]} 10. Bxd7 {[%emt 0:00:05]} Qxd7 {[%emt 0:00:52]} 11. Nbd2 {[%emt 0:00:42]} b5 {[%emt 0:01:40]} 12. Qe2 {[%emt 0:01:07]} a5 {[%emt 0:00:35]} 13. e4 {[%emt 0:00:51]} a4 {[%emt 0:00:35]} 14. Bxf6 {[%emt 0:00:50]} Bxf6 {[%emt 0:00:11]} 15. e5 {[%emt 0:00:03]} Be7 {[%emt 0:01:05]} 16. exd6 {[%emt 0:00:23]} Qxd6 {[%emt 0:01:22]} 17. g3 {[%emt 0:01:36]} Bf6 {[%emt 0:01:19]} 18. Rab1 {[%emt 0:00:48]} axb3 {[%emt 0:02:23]} 19. axb3 {[%emt 0:00:04]} Ra2 {[%emt 0:01:28]} 20. Ne4 {[%emt 0:00:17]} Bd4+ {[%emt 0:00:53]} 21. Nxd4 {[%emt 0:00:25]} Qxd4+ {[%emt 0:00:03]} 22. Qf2 {[%emt 0:00:32]} Bxe4 {[%emt 0:03:19]} 23. Qxd4 {[%emt 0:00:54]} cxd4 {[%emt 0:00:05]} 24. dxe4 {[%emt 0:00:02]} f6 {[%emt 0:04:48]} 25. Rbd1 {[%emt 0:01:13]} Rc8 {[%emt 0:01:41]} 26. Rf2 {[%emt 0:00:33]} e5 {[%emt 0:00:11]} 27. Rdd2 {[%emt 0:00:16]} h5 {[%emt 0:00:36]} 28. Kg2 {[%emt 0:00:40]} Rc5 {[%emt 0:00:13]} 29. f5 {[%emt 0:01:24]} Kh7 {[%emt 0:00:35]} 30. Kh3 {[%emt 0:00:17]} Rc3 {[%emt 0:00:16]} 31. Kh4 {[%emt 0:00:23]} Kh6 {[%emt 0:00:50]} 32. Rfe2 {[%emt 0:00:50]} Rf3 {[%emt 0:00:40]} 33. Kh3 {[%emt 0:00:37]} Kg5 {[%emt 0:00:19]} 34. Kg2 {[%emt 0:00:05]} Rc3 {[%emt 0:00:01]} 35. Rf2 {[%emt 0:04:28]} Re3 {[%emt 0:00:06]} 36. h4+ {[%emt 0:00:05]} Kg4 {[%emt 0:01:34]} 37. Kh2 {[%emt 0:02:05]} Ra1 {[%emt 0:00:26]} 38. Rde2 {[%emt 0:01:10]} Re1 {[%emt 0:00:26]} 39. Rd2 {[%emt 0:00:59]} b4 {[%emt 0:00:20]} 40. Rxd4 {[%emt 0:00:17]} Rxg3 {[%emt 0:01:34]} 41. Rd3 {[%emt 0:02:00]} Rgg1 {[%emt 0:00:43]} 42. Rg2+ {[%emt 0:00:46]} Rxg2+ {[%emt 0:00:03]} 43. Kxg2 {[%emt 0:00:02]} Rxe4 {[%emt 0:00:03]} 44. Rg3+ {[%emt 0:00:48]} Kxf5 {[%emt 0:00:02]} 45. Rxg7 {[%emt 0:00:01]} Rxh4 {[%emt 0:00:16]} 46. Rb7 {[%emt 0:00:18]} Rd4 {[%emt 0:00:11]} 47. Kf3 {[%emt 0:00:08]} h4 {[%emt 0:00:06]} 48. Ke3 {[%emt 0:00:23]} Kg4 {[%emt 0:00:13]} 49. Rg7+ {[%emt 0:00:02]} Kh3 {[%emt 0:00:06]} 50. Rg6 {[%emt 0:00:08]} Rf4 {[%emt 0:00:03]} 51. Ke2 {[%emt 0:00:14]} Kh2 {[%emt 0:00:44]} 52. Ke3 {[%emt 0:00:05]} Rf5 {[%emt 0:00:45]} 53. Rh6 {[%emt 0:00:16]} Kh3 {[%emt 0:00:59]} 54. Rg6 {[%emt 0:00:06]} Rf4 {[%emt 0:00:05]} 55. Ke2 {[%emt 0:00:04]} f5 {[%emt 0:00:03]} 56. Rg5 {[%emt 0:00:03]} e4 {[%emt 0:00:05]} 57. Ke3 {[%emt 0:00:03]} Rf3+ {[%emt 0:00:03]} 58. Ke2 {[%emt 0:00:01]} Rf4 {[%emt 0:00:21]} 59. Ke3 {[%emt 0:00:02]} Rf1 {[%emt 0:00:05]} 60. Ke2 {[%emt 0:00:05]} Rf3 {[%emt 0:00:03]} 61. Rg1 {[%emt 0:00:25]} Rg3 {[%emt 0:00:02]} 62. Rf1 {[%emt 0:00:02]} Kg4 {[%emt 0:00:02]} 0-1

[Event "16th Deltalift Open 2019"]
[Site "Halmstad"]
[Date "2019.05.30"]
[Round "3.23"]
[White "Naslund, Mikael"]
[Black "Petersson, Kjell"]
[Result "1-0"]
[ECO "D02"]
[WhiteElo "2177"]
[BlackElo "1949"]
[Annotator "ChessBase"]
[PlyCount "83"]
[EventDate "2019.05.30"]
[EventType "swiss"]
[EventCountry "SWE"]
[SourceTitle "playchess.com"]
[Source "ChessBase"]
[SourceQuality "1"]
[TimeControl "1800+12"]

1. d4 {[%emt 0:00:00]} d5 {[%emt 0:00:00]} 2. Nf3 {[%emt 0:00:00]} e6 {[%emt 0:00:00]} 3. c4 {[%emt 0:00:00]} c6 {[%emt 0:00:00]} 4. Nc3 {[%emt 0:00:09]} f5 {[%emt 0:00:32]} 5. g3 {[%emt 0:00:10]} Nf6 {[%emt 0:00:07]} 6. Bg2 {[%emt 0:00:02]} Bd6 {[%emt 0:00:03]} 7. O-O {[%emt 0:00:21]} Nbd7 {[%emt 0:01:01]} 8. c5 {[%emt 0:00:48]} Bc7 {[%emt 0:00:03]} 9. b4 {[%emt 0:00:05]} e5 {[%emt 0:02:28]} 10. dxe5 {[%emt 0:02:28]} Nxe5 {[%emt 0:00:01]} 11. Nxe5 {[%emt 0:00:06]} Bxe5 {[%emt 0:00:01]} 12. Bb2 {[%emt 0:00:27]} O-O {[%emt 0:02:43]} 13. e3 {[%emt 0:00:45]} Be6 {[%emt 0:01:33]} 14. Qc2 {[%emt 0:00:48]} Qe8 {[%emt 0:01:32]} 15. Ne2 {[%emt 0:00:35]} Bd7 {[%emt 0:02:07]} 16. a3 {[%emt 0:01:28]} Rd8 {[%emt 0:01:07]} 17. Bxe5 {[%emt 0:01:51]} Qxe5 {[%emt 0:00:01]} 18. Rab1 {[%emt 0:00:28]} Ne4 {[%emt 0:01:24]} 19. Qb2 {[%emt 0:01:45]} Qe7 {[%emt 0:01:49]} 20. Rfc1 {[%emt 0:01:27]} Rde8 {[%emt 0:03:00]} 21. Qd4 {[%emt 0:00:20]} a6 {[%emt 0:00:42]} 22. a4 {[%emt 0:00:09]} Qf7 {[%emt 0:02:22]} 23. Nf4 {[%emt 0:00:42]} g5 {[%emt 0:00:59]} 24. Nd3 {[%emt 0:00:29]} Qh5 {[%emt 0:00:55]} 25. Rb2 {[%emt 0:00:29]} Re6 {[%emt 0:00:25]} 26. Ne5 {[%emt 0:06:33]} Bc8 {[%emt 0:00:03]} 27. f3 {[%emt 0:01:25]} Rh6 {[%emt 0:01:11]} 28. Bf1 {[%emt 0:04:04]} Nxg3 {[%emt 0:03:11]} 29. hxg3 {[%emt 0:00:04]} Qh1+ {[%emt 0:00:18]} 30. Kf2 {[%emt 0:00:02]} f4 {[%emt 0:01:48]} 31. exf4 {[%emt 0:03:53]} gxf4 {[%emt 0:00:02]} 32. g4 {[%emt 0:00:30]} Qh4+ {[%emt 0:02:04]} 33. Ke2 {[%emt 0:00:17]} Re8 {[%emt 0:01:24]} 34. Kd3 {[%emt 0:00:28]} Bxg4 {[%emt 0:01:13]} 35. Nxg4 {[%emt 0:00:57]} Rhe6 {[%emt 0:00:20]} 36. Re2 {[%emt 0:00:22]} Qg3 {[%emt 0:00:18]} 37. Nh6+ {[%emt 0:02:06]} Rxh6 {[%emt 0:00:01]} 38. Rxe8+ {[%emt 0:00:01]} Kf7 {[%emt 0:00:02]} 39. Qe5 {[%emt 0:00:49]} Qxf3+ {[%emt 0:00:02]} 40. Kd2 {[%emt 0:00:05]} Rh2+ {[%emt 0:00:02]} 41. Be2 {[%emt 0:00:01]} Rxe2+ {[%emt 0:01:00]} 42. Qxe2 {[%emt 0:00:02]} 1-0

[Event "16th Deltalift Open 2019"]
[Site "Halmstad"]
[Date "2019.05.30"]
[Round "3.24"]
[White "Lindborg, Patrik"]
[Black "Stenman, Christoffer"]
[Result "1-0"]
[ECO "A52"]
[WhiteElo "2172"]
[BlackElo "1947"]
[Annotator "ChessBase"]
[PlyCount "75"]
[EventDate "2019.05.30"]
[EventType "swiss"]
[EventCountry "SWE"]
[SourceTitle "playchess.com"]
[Source "ChessBase"]
[SourceQuality "1"]
[TimeControl "1800+12"]

1. d4 {[%emt 0:00:00]} Nf6 {[%emt 0:00:00]} 2. c4 {[%emt 0:00:00]} e5 {[%emt 0:00:00]} 3. dxe5 {[%emt 0:00:00]} Ng4 {[%emt 0:00:00]} 4. Bf4 {[%emt 0:00:13]} Nc6 {[%emt 0:00:00]} 5. Nf3 {[%emt 0:00:02]} Bb4+ {[%emt 0:00:02]} 6. Nbd2 {[%emt 0:00:01]} Qe7 {[%emt 0:00:03]} 7. e3 {[%emt 0:00:04]} Ngxe5 {[%emt 0:00:09]} 8. Nxe5 {[%emt 0:00:26]} Nxe5 {[%emt 0:00:03]} 9. Be2 {[%emt 0:00:04]} O-O {[%emt 0:00:42]} 10. O-O {[%emt 0:00:02]} Bxd2 {[%emt 0:00:55]} 11. Qxd2 {[%emt 0:00:01]} d6 {[%emt 0:00:30]} 12. Qc3 {[%emt 0:00:20]} Re8 {[%emt 0:02:49]} 13. h3 {[%emt 0:08:53]} Bd7 {[%emt 0:02:26]} 14. Rac1 {[%emt 0:04:28]} Bc6 {[%emt 0:05:17]} 15. Rfd1 {[%emt 0:01:57]} Ng6 {[%emt 0:01:44]} 16. Bg3 {[%emt 0:00:18]} Nh4 {[%emt 0:01:35]} 17. c5 {[%emt 0:05:01]} Nxg2 {[%emt 0:04:50]} 18. cxd6 {[%emt 0:00:17]} cxd6 {[%emt 0:00:21]} 19. Qd4 {[%emt 0:01:46]} Qg5 {[%emt 0:08:15]} 20. Rxc6 {[%emt 0:01:33]} Nxe3 {[%emt 0:00:59]} 21. h4 {[%emt 0:01:12]} Qa5 {[%emt 0:03:00]} 22. fxe3 {[%emt 0:01:51]} bxc6 {[%emt 0:00:02]} 23. a3 {[%emt 0:00:44]} d5 {[%emt 0:00:21]} 24. Bd3 {[%emt 0:00:24]} Re6 {[%emt 0:00:14]} 25. h5 {[%emt 0:00:45]} Qd8 {[%emt 0:00:19]} 26. Qg4 {[%emt 0:00:23]} h6 {[%emt 0:00:12]} 27. Bh4 {[%emt 0:00:41]} Qb6 {[%emt 0:00:02]} 28. Bf2 {[%emt 0:00:23]} Qxb2 {[%emt 0:00:21]} 29. Qf5 {[%emt 0:00:55]} Rae8 {[%emt 0:00:03]} 30. Qh7+ Kf8 31. Bh4 {[%emt 0:00:22]} g5 {[%emt 0:00:13]} 32. hxg6 {[%emt 0:00:23]} Qg7 {[%emt 0:00:31]} 33. Kf2 {[%emt 0:02:39]} d4 {[%emt 0:00:04]} 34. gxf7 {[%emt 0:00:12]} R8e7 {[%emt 0:00:30]} 35. Bxe7+ {[%emt 0:00:05]} Kxf7 {[%emt 0:00:04]} 36. Qxg7+ {[%emt 0:00:18]} Kxg7 {[%emt 0:00:01]} 37. Bc5 {[%emt 0:00:02]} dxe3+ {[%emt 0:00:04]} 38. Bxe3 {[%emt 0:00:02]} 1-0

[Event "16th Deltalift Open 2019"]
[Site "Halmstad"]
[Date "2019.05.30"]
[Round "4.1"]
[White "Hector, Jonny"]
[Black "Seo, Jung Min"]
[Result "0-1"]
[ECO "B30"]
[WhiteElo "2488"]
[BlackElo "2377"]
[Annotator "ChessBase"]
[PlyCount "130"]
[EventDate "2019.05.30"]
[EventType "swiss"]
[EventCountry "SWE"]
[SourceTitle "playchess.com"]
[Source "ChessBase"]
[SourceQuality "1"]
[TimeControl "1800+12"]

1. e4 {[%emt 0:00:00]} c5 {[%emt 0:00:00]} 2. Nf3 {[%emt 0:00:00]} Nc6 {[%emt 0:00:00]} 3. Nc3 {[%emt 0:00:00]} g6 {[%emt 0:00:53]} 4. Bc4 {[%emt 0:00:16]} Bg7 {[%emt 0:00:25]} 5. O-O {[%emt 0:00:04]} d6 {[%emt 0:00:45]} 6. d3 {[%emt 0:00:22]} e6 {[%emt 0:01:33]} 7. a3 {[%emt 0:00:13]} Nge7 {[%emt 0:00:06]} 8. Re1 {[%emt 0:00:25]} O-O {[%emt 0:00:31]} 9. Ba2 {[%emt 0:00:05]} a6 {[%emt 0:00:49]} 10. Be3 {[%emt 0:00:36]} Nd4 {[%emt 0:00:54]} 11. Bxd4 {[%emt 0:00:24]} cxd4 {[%emt 0:00:02]} 12. Ne2 {[%emt 0:00:06]} Qb6 {[%emt 0:01:22]} 13. Qd2 {[%emt 0:04:17]} Bd7 {[%emt 0:00:59]} 14. c3 {[%emt 0:00:41]} dxc3 {[%emt 0:00:15]} 15. bxc3 {[%emt 0:00:40]} Rac8 {[%emt 0:00:21]} 16. Rab1 {[%emt 0:00:30]} Qc7 {[%emt 0:00:01]} 17. d4 {[%emt 0:00:42]} b5 {[%emt 0:00:36]} 18. Rbc1 {[%emt 0:01:18]} Qa5 {[%emt 0:01:57]} 19. h4 {[%emt 0:00:36]} Qd8 {[%emt 0:04:08]} 20. h5 {[%emt 0:00:26]} Nc6 {[%emt 0:00:40]} 21. Qf4 {[%emt 0:03:31]} Qe7 {[%emt 0:01:40]} 22. e5 {[%emt 0:02:38]} dxe5 {[%emt 0:02:59]} 23. dxe5 {[%emt 0:00:08]} Qxa3 {[%emt 0:00:05]} 24. Ra1 {[%emt 0:01:38]} Qe7 {[%emt 0:01:04]} 25. Ng3 {[%emt 0:00:18]} h6 {[%emt 0:04:07]} 26. hxg6 {[%emt 0:01:24]} fxg6 {[%emt 0:00:01]} 27. Qg4 {[%emt 0:00:15]} Qf7 {[%emt 0:00:14]} 28. Rad1 {[%emt 0:01:18]} Kh7 {[%emt 0:00:39]} 29. Ne4 {[%emt 0:04:35]} Qe7 {[%emt 0:04:34]} 30. Rxd7 {[%emt 0:02:00]} Qxd7 {[%emt 0:00:01]} 31. Bxe6 {[%emt 0:00:08]} Qc7 {[%emt 0:00:52]} 32. Bxc8 {[%emt 0:03:09]} Qxc8 {[%emt 0:00:14]} 33. e6 {[%emt 0:00:09]} Ne7 {[%emt 0:00:56]} 34. Nd6 {[%emt 0:02:00]} Qxc3 {[%emt 0:00:27]} 35. Nf7 {[%emt 0:00:03]} b4 {[%emt 0:01:07]} 36. Qh4 {[%emt 0:00:13]} Nf5 {[%emt 0:00:13]} 37. Qe4 {[%emt 0:00:20]} Re8 {[%emt 0:01:18]} 38. g4 {[%emt 0:00:18]} Ne7 {[%emt 0:00:01]} 39. Re3 {[%emt 0:00:17]} Qc1+ {[%emt 0:00:11]} 40. Kg2 {[%emt 0:00:01]} Qc6 {[%emt 0:00:12]} 41. Qxb4 {[%emt 0:00:07]} Nd5 {[%emt 0:00:03]} 42. Qe4 {[%emt 0:00:16]} Nxe3+ {[%emt 0:00:02]} 43. Qxe3 {[%emt 0:00:01]} Kg8 {[%emt 0:00:40]} 44. Nxh6+ {[%emt 0:00:13]} Bxh6 {[%emt 0:00:01]} 45. Qxh6 {[%emt 0:00:02]} Qxe6 {[%emt 0:00:00]} 46. Kg3 {[%emt 0:00:42]} Qd6+ {[%emt 0:00:27]} 47. Kg2 {[%emt 0:00:01]} Qc6 {[%emt 0:00:11]} 48. Kg3 {[%emt 0:00:05]} Qc7+ {[%emt 0:00:23]} 49. Kg2 {[%emt 0:00:03]} Qg7 {[%emt 0:00:07]} 50. Qd2 {[%emt 0:00:10]} Qf6 {[%emt 0:00:04]} 51. g5 {[%emt 0:00:51]} Qe6 {[%emt 0:00:20]} 52. Kg3 {[%emt 0:00:22]} Rf8 {[%emt 0:00:05]} 53. Nh2 {[%emt 0:00:18]} Qe5+ {[%emt 0:00:14]} 54. f4 {[%emt 0:00:01]} Qe7 {[%emt 0:00:31]} 55. Ng4 {[%emt 0:00:11]} Qe6 {[%emt 0:00:14]} 56. Qc3 {[%emt 0:00:13]} Rc8 {[%emt 0:00:17]} 57. Qd2 {[%emt 0:00:54]} Qc6 {[%emt 0:00:07]} 58. Nf6+ {[%emt 0:00:15]} Kf7 {[%emt 0:00:11]} 59. Qh2 {[%emt 0:00:08]} Qc3+ 60. Kg4 Qd3 {[%emt 0:00:10]} 61. Qa2+ {[%emt 0:00:48]} Qc4 {[%emt 0:00:14]} 62. Qa5 {[%emt 0:00:17]} Qe6+ {[%emt 0:00:11]} 63. Kg3 {[%emt 0:00:03]} Rc1 {[%emt 0:00:23]} 64. Kf2 {[%emt 0:00:25]} Rc2+ {[%emt 0:00:07]} 65. Kg3 {[%emt 0:00:02]} Qe3+ {[%emt 0:00:07]} 0-1

[Event "16th Deltalift Open 2019"]
[Site "Halmstad"]
[Date "2019.05.30"]
[Round "4.2"]
[White "Lindberg, Bengt"]
[Black "Cramling, Pia"]
[Result "0-1"]
[ECO "B94"]
[WhiteElo "2382"]
[BlackElo "2454"]
[Annotator "ChessBase"]
[PlyCount "84"]
[EventDate "2019.05.30"]
[EventType "swiss"]
[EventCountry "SWE"]
[SourceTitle "playchess.com"]
[Source "ChessBase"]
[SourceQuality "1"]
[TimeControl "1800+12"]

1. e4 {[%emt 0:00:00]} c5 {[%emt 0:00:00]} 2. Nf3 {[%emt 0:00:00]} d6 {[%emt 0:00:00]} 3. d4 {[%emt 0:00:00]} cxd4 {[%emt 0:00:00]} 4. Nxd4 {[%emt 0:00:00]} Nf6 {[%emt 0:00:00]} 5. Nc3 {[%emt 0:00:00]} a6 {[%emt 0:00:00]} 6. Bg5 {[%emt 0:00:00]} Nbd7 {[%emt 0:00:00]} 7. Bc4 {[%emt 0:00:11]} Qa5 {[%emt 0:00:19]} 8. Qd2 {[%emt 0:00:57]} e6 {[%emt 0:00:22]} 9. f3 {[%emt 0:05:30]} b5 {[%emt 0:02:09]} 10. Bb3 {[%emt 0:00:04]} Bb7 {[%emt 0:00:19]} 11. g4 {[%emt 0:01:34]} Be7 {[%emt 0:00:15]} 12. O-O-O {[%emt 0:01:08]} b4 {[%emt 0:03:29]} 13. Nce2 {[%emt 0:00:09]} Nxe4 {[%emt 0:00:09]} 14. Bxe7 {[%emt 0:01:28]} Nxd2 {[%emt 0:00:06]} 15. Bxd6 {[%emt 0:00:05]} Nxb3+ {[%emt 0:01:16]} 16. Nxb3 {[%emt 0:00:09]} Qb6 {[%emt 0:00:29]} 17. Rhf1 {[%emt 0:00:18]} Bd5 {[%emt 0:03:50]} 18. Bg3 {[%emt 0:00:22]} O-O {[%emt 0:00:28]} 19. Nf4 {[%emt 0:00:02]} Bc4 {[%emt 0:00:23]} 20. Rfe1 {[%emt 0:00:07]} Rfd8 {[%emt 0:01:32]} 21. Nd2 {[%emt 0:00:04]} Bd5 {[%emt 0:00:30]} 22. Nxd5 {[%emt 0:01:12]} exd5 {[%emt 0:00:02]} 23. Re7 {[%emt 0:00:08]} Rac8 {[%emt 0:00:07]} 24. Nb3 {[%emt 0:00:24]} Nf8 {[%emt 0:00:23]} 25. Re2 {[%emt 0:00:59]} Ne6 {[%emt 0:00:44]} 26. Kb1 {[%emt 0:00:09]} a5 {[%emt 0:00:11]} 27. Nc1 {[%emt 0:01:04]} a4 {[%emt 0:00:22]} 28. f4 {[%emt 0:00:38]} Nc5 {[%emt 0:00:11]} 29. Bf2 {[%emt 0:00:13]} Qb5 {[%emt 0:00:05]} 30. Bh4 {[%emt 0:02:08]} Rd7 {[%emt 0:00:47]} 31. Rde1 {[%emt 0:01:21]} Ne4 {[%emt 0:00:13]} 32. f5 {[%emt 0:01:57]} h6 {[%emt 0:00:08]} 33. f6 {[%emt 0:01:35]} g5 {[%emt 0:00:19]} 34. Bg3 {[%emt 0:00:03]} Nxf6 {[%emt 0:01:09]} 35. Be5 {[%emt 0:00:24]} Ne4 {[%emt 0:00:18]} 36. Nd3 {[%emt 0:00:56]} f6 {[%emt 0:00:32]} 37. Bd4 {[%emt 0:00:13]} Rc4 {[%emt 0:00:22]} 38. Bg1 {[%emt 0:00:26]} Rdc7 {[%emt 0:00:13]} 39. Rd1 {[%emt 0:00:44]} b3 {[%emt 0:00:20]} 40. cxb3 {[%emt 0:00:20]} axb3 {[%emt 0:00:03]} 41. a3 {[%emt 0:00:31]} Rc2 {[%emt 0:00:18]} 42. Ree1 {[%emt 0:00:17]} Nd2+ {[%emt 0:00:50]} 0-1